Cogmind - Beta 10 @@@ ROGUE MODE // 2020.09.15 @ 18:11:25 Player: animal_waves Result: Destroyed by G-34 Mercenary with Small Laser Performance ------------- Evolutions (1) 500 Regions Visited (3) 600 Robots Destroyed (24) 120 Value Destroyed (618) 618 Prototype IDs (0) 0 Alien Tech Used (0) 0 Bonus (0) 0 TOTAL SCORE: 1838 Bonus ------- None Cogmind --------- Core Integrity 0/400 Matter 400/400 Energy 100/100 System Corruption 4% Temperature Cool (6) Movement Walking (150) Ox1 Location -9/Mines Parts ------- > --- POWER (1) -------- Reinforced Ion Engine > --- PROPULSION (2) --- Aluminum Leg > --- UTILITY (4) ------ Medium Matter Pod Visual Processing Unit Signal Interpreter > --- WEAPON (2) ------- (None) > --- INVENTORY (4) ---- Ion Engine Improved Heat Sink Peak State ------------ > --- POWER ------------ Ion Engine > --- PROPULSION ------- Improved Aluminum Leg Improved Aluminum Leg > --- UTILITY ---------- Small Storage Unit Visual Processing Unit Signal Interpreter Signal Interpreter > --- WEAPON ----------- Small Laser Autogun > --- INVENTORY -------- Light Treads Light Treads Aluminum Leg Improved Heat Sink Sensor Array [Rating: 13] Favorites ----------- Power Ion Engine Engine Ion Engine Propulsion Light Treads Treads Light Treads Leg Improved Aluminum Leg Utility Signal Interpreter Device Sensor Array Storage Small Storage Unit Processor Signal Interpreter Weapon Light Assault Rifle Energy Gun EM Pulse Gun Ballistic Gun Light Assault Rifle Launcher Rocket Launcher Build | -11 -10 -9 -9 ------- Run | Scr Mat Mat Min Slots Evolved 2 | . . 2 . Power . | . . . . Propulsion . | . . . . Utility 2 | . . 2 . Weapon . | . . . . Parts Attached 28 | 6 1 6 15 Power 6 | 1 . 1 4 Engine 6 | 1 . 1 4 Core . | . . . . Reactor . | . . . . Propulsion 10 | 2 . 1 7 Treads 5 | 2 . 1 2 Leg 5 | . . . 5 Wheel . | . . . . Hover . | . . . . Flight . | . . . . Utility 6 | 1 1 2 2 Device 1 | . . . 1 Storage 2 | 1 . . 1 Processor 3 | . 1 2 . Hackware . | . . . . Protection . | . . . . Artifact . | . . . . Weapon 6 | 2 . 2 2 Energy Gun 3 | 1 . 1 1 Energy Cannon . | . . . . Ballistic Gun 2 | 1 . 1 . Ballistic Cannon . | . . . . Launcher 1 | . . . 1 Special Weapon . | . . . . Impact Weapon . | . . . . Slashing Weapon . | . . . . Piercing Weapon . | . . . . Special Melee Weapon . | . . . . Unidentified Prototypes . | . . . . Parts Lost 14 | . . 2 12 Power 3 | . . 1 2 Propulsion 4 | . . . 4 Utility 2 | . . . 2 Weapon 5 | . . 1 4 Highest Loss Streak 5 | . . 2 5 Average Slot Usage (%) 82 | . 92 94 71 Engine 10 | . 14 5 10 Treads 14 | . 28 22 3 Leg 4 | . . . 8 Device 1 | . . . 3 Storage 11 | . 14 11 10 Processor 21 | . 6 33 23 Energy Gun 8 | . 14 11 3 Ballistic Gun 8 | . 14 11 4 Launcher 1 | . . . 3 Naked Turns . | . . . . Heaviest Build 16 | 12 12 15 16 Greatest Support 40 | 40 40 40 40 Greatest Overweight (x) 3 | 1 . . 3 Average Overweight (x) . | . . . . Largest Inventory Capacity 6 | 6 6 6 6 Average Capacity 5 | 5 6 6 4 Most Carried 6 | . 5 6 6 Average Carried 3 | . 1 5 3 Final Capacity 6 | 6 6 6 4 Final Carried 5 | . 5 5 2 Class Distribution -------------------- 55% | Mutant 34% | Scavenger-Mutant 10% | Scavenger-Skirmisher Dominant Class ---------------- Mutant | -10/Materials Mutant | -9/Materials Scavenger-Mutant | -9/Mines Resources | -11 -10 -9 -9 ----------- Run | Scr Mat Mat Min Matter Collected 705 | 260 28 69 348 Remotely . | . . . . Salvage Created 770 | . 240 230 300 Parts 40 | . 15 13 12 Haulers Intercepted . | . . . . Recyclers Shooed . | . . . . Parts Field Recycled . | . . . . Retrieved Matter . | . . . . Parts Self-Destructed . | . . . . Prevented . | . . . . Kills | -11 -10 -9 -9 ------- Run | Scr Mat Mat Min Combat Hostiles Destroyed 21 | . 5 5 11 Melee 1 | . . . 1 Guns 16 | . 4 5 7 AOE 4 | . 1 . 3 Classes Destroyed 9 | . 2 1 6 Worker 1 | . . . 1 Recycler 1 | . . . 1 Watcher 1 | . 1 . . Swarmer 4 | . . . 4 Grunt 12 | . 5 4 3 Brawler 1 | . . . 1 Sentry 1 | . . 1 . Demolisher 1 | . . . 1 Assembled 2 | . . . 2 Best Kill Streak 4 | . 3 3 4 Combat Bots Only 4 | . 3 3 4 Max Kills in Single Turn 2 | . 1 1 2 Gunslinging . | . . . . Exploded 1 | . 1 . 1 Melee 1 | . . . 1 Uniques/NPCs Destroyed . | . . . . Combat | -11 -10 -9 -9 -------- Run | Scr Mat Mat Min Damage Taken 1830 | . 313 176 1341 Core 430 | . 25 26 379 Absorbed by Shields . | . . . . Core Remaining (%) 95 | 100 90 . . Volleys Fired 60 | . 18 10 32 Largest 2 | . 2 2 2 Hottest 68 | . 60 68 63 Shots Fired 90 | . 36 19 35 Gun 82 | . 36 19 27 Cannon . | . . . . Launcher 8 | . . . 8 Special . | . . . . Kinetic 52 | . 18 10 24 Thermal 3 | . . . 3 Explosive 8 | . . . 8 Electromagnetic 27 | . 18 9 . Robot Hit Streak 24 | . 14 24 4 Robot Miss Streak 5 | . 3 2 5 Penetration Max . | . . . . Secondary Targets 2 | . . 2 . Max Gunslinging Chain 1 | . . 1 . Shots Hit Robots 62 | . 29 17 16 Core Hits 47 | . 12 12 23 Critical Hits . | . . . . Critical Kills . | . . . . Critical Parts Destroyed . | . . . . Melee Attacks . | . . . . Impact . | . . . . Slashing . | . . . . Piercing . | . . . . Sneak Attacks . | . . . . Combat Hostiles . | . . . . Follow-up Attacks . | . . . . Damage Inflicted 1294 | . 432 212 650 Guns 741 | . 300 212 229 Cannons . | . . . . Explosions 507 | . 132 . 375 Melee . | . . . . Ramming 46 | . . . 46 Kinetic 388 | . 107 83 198 Thermal 163 | . 132 . 31 Explosive 375 | . . . 375 Electromagnetic 322 | . 193 129 . Impact . | . . . . Slashing . | . . . . Piercing . | . . . . Highest Corruption 4 | . . 3 4 Average Corruption 3 | . . 1 3 Corruption Purged . | . . . . Effects 11 | . . 1 10 Message Errors 1 | . . . 1 Matter Fused 3 | . . . 3 Heat Flow Errors 2 | . . 1 1 Energy Discharges 1 | . . . 1 Parts Rejected 1 | . . . 1 Targeting Errors 3 | . . . 3 Overload Shots . | . . . . Overflow Damage 12 | . 1 . 11 Projectiles . | . . . . Explosions 12 | . 1 . 11 Melee . | . . . . Knockbacks 1 | . . . 1 Impact 1 | . . . 1 Kinetic . | . . . . Secondary . | . . . . Self-Inflicted Damage 147 | . . . 147 Shots 4 | . . . 4 Rammed 19 | . . . 19 Targets Rammed 21 | . . . 21 Kicked 2 | . . . 2 Crushed . | . . . . Highest Temperature 167 | . 77 167 135 Average Temperature 37 | . 34 15 57 Received Heat Transfer 504 | . 177 81 246 Siege Activations . | . . . . Robots Corrupted . | . . . . Combat Hostiles . | . . . . Parts Fried 1 | . 1 . . Impact Corruptions . | . . . . Robots Melted . | . . . . Combat Hostiles . | . . . . Parts Melted . | . . . . Heat Transferred 275 | . 200 . 75 Parts Sabotaged . | . . . . Parts Stolen . | . . . . Parts Stripped . | . . . . Power Chain Reactions 2 | . 2 . . Missiles Intercepted . | . . . . Alert | -11 -10 -9 -9 ------- Run | Scr Mat Mat Min Peak Influence 224 | . 150 192 224 Initial 74 | . . 63 74 Average 89 | . 69 122 91 Maximum Alert Level 1 | . . . 1 Low Security (%) 95 | 100 100 100 91 Level 1 4 | . . . 8 Level 2 . | . . . . Level 3 . | . . . . Level 4 . | . . . . Level 5 . | . . . . High Security . | . . . . Max Security . | . . . . Squads Dispatched 3 | . 1 1 1 Investigation 2 | . 1 1 . Extermination . | . . . . Reinforcement 1 | . . . 1 Assault . | . . . . Garrison . | . . . . Intercept . | . . . . Construction Impeded 1 | . . . 1 Haulers Reinforced . | . . . . Stealth | -11 -10 -9 -9 --------- Run | Scr Mat Mat Min Distress Signals . | . . . . Communications Jammed . | . . . . Distress Signals . | . . . . Times Spotted 31 | . 8 7 16 Peak Tracking Total 4 | . 3 3 4 Tactical Retreats 1 | . . . 1 Traps | -11 -10 -9 -9 ------- Run | Scr Mat Mat Min Traps Triggered 3 | . . 3 . Indirectly . | . . . . Trap Hack Attempts . | . . . . Triggered . | . . . . Disarmed . | . . . . Reprogrammed . | . . . . Reused . | . . . . Traps Extracted . | . . . . Installed . | . . . . Triggered . | . . . . Machines | -11 -10 -9 -9 ---------- Run | Scr Mat Mat Min Machines Disabled . | . . . . Max in Single Turn . | . . . . Machines Sabotaged . | . . . . Garrisons Compromised . | . . . . Overloaded Fab Kills . | . . . . Fab Network Shutdowns . | . . . . Hacking | -11 -10 -9 -9 --------- Run | Scr Mat Mat Min Machines Accessed 5 | . 2 3 . Terminals 2 | . 1 1 . Fabricators . | . . . . Repair Stations 1 | . . 1 . Recycling Units 1 | . 1 . . Scanalyzers 1 | . . 1 . Garrison Access . | . . . . Total Hacks 15 | . 5 10 . Successful 11 | . 3 8 . Failed 4 | . 2 2 . Catastrophic 1 | . . 1 . Database Lockouts . | . . . . Manual 2 | . 2 . . Terminals 4 | . 2 2 . Fabricators . | . . . . Repair Stations 3 | . . 3 . Recycling Units 3 | . 3 . . Scanalyzers 5 | . . 5 . Garrison Access . | . . . . Terminal Hacks 3 | . 1 2 . Branch Access Points 1 | . 1 . . Maintenance Status 1 | . . 1 . Investigation Status 1 | . . 1 . Fabricator Hacks . | . . . . Repair Station Hacks 1 | . . 1 . Scan Component 1 | . . 1 . Recycling Unit Hacks 2 | . 2 . . Report Inventory 1 | . 1 . . Retrieve Components 1 | . 1 . . Scanalyzer 5 | . . 5 . Insert Component 2 | . . 2 . Analyze 3 | . . 3 . Garrison Access Hacks . | . . . . Unauthorized Hacks . | . . . . Terminals . | . . . . Fabricators . | . . . . Repair Stations . | . . . . Recycling Units . | . . . . Scanalyzers . | . . . . Garrison Access . | . . . . Data Cores Recovered . | . . . . Used . | . . . . Hacking Detections 4 | . 2 2 . Full Trace Events 3 | . 1 2 . Feedback Events . | . . . . Feedback Blocked . | . . . . Robot Schematics Acquired . | . . . . Robots Built . | . . . . Matter . | . . . . Time . | . . . . Total Robot Build Rating . | . . . . Part Schematics Acquired 2 | . . 2 . Parts Built . | . . . . Matter . | . . . . Time . | . . . . Total Part Build Rating . | . . . . Parts Repaired . | . . . . Time . | . . . . Parts Recycled . | . . . . Recycled Matter . | . . . . Retrieved Matter . | . . . . Retrieved Components 2 | . 2 . . Parts Scanalyzed 2 | . . 2 . Part Schematics Acquired 2 | . . 2 . Parts Damaged . | . . . . Bothacking | -11 -10 -9 -9 ------------ Run | Scr Mat Mat Min Used RIF Installer . | . . . . Robots Hacked . | . . . . Non-combat . | . . . . Combat . | . . . . Robot Hacks Applied . | . . . . Relay Couplers Released . | . . . . Robots Rewired . | . . . . Allies Hacked . | . . . . Hacks Repelled . | . . . . Allies | -11 -10 -9 -9 -------- Run | Scr Mat Mat Min Total Allies . | . . . . Largest Group . | . . . . Highest-Rated Group . | . . . . Highest-Rated Ally . | . . . . Total Orders . | . . . . Ally Attacks . | . . . . Total Damage . | . . . . Kills . | . . . . Allies Corrupted . | . . . . Allies Melted . | . . . . Intel | -11 -10 -9 -9 ------- Run | Scr Mat Mat Min Robot Analysis Total . | . . . . Derelict Logs Recovered 2 | . . . 2 Drone Launches . | . . . . Drone Recoveries . | . . . . Exploration | -11 -10 -9 -9 ------------- Run | Scr Mat Mat Min Turns Passed 1469 | 56 381 330 702 Spaces Moved 886 | 38 201 175 472 Core 217 | 15 . . 202 Treads 437 | 23 201 175 38 Legs 232 | . . . 232 Wheels . | . . . . Hover . | . . . . Flight . | . . . . Fastest Speed 50 | 50 160 160 50 Average Speed 137 | 120 160 160 121 Slowest Speed 200 | 160 160 160 200 Overloaded Moves . | . . . . Propulsion Burnouts . | . . . . Robots Hopped . | . . . . Cave-ins Triggered . | . . . . Exploration Rate (%) 34 | 3 29 22 82 Regions Visited 3 Branch Regions 1 Pre-discovered Areas . | . . . . Known Exits Taken 2 | . 1 1 . Unknown Exits Taken 1 | 1 . . . Scrap Searched . | . . . . Spaces Dug . | . . . . Terrain Destroyed 76 | . 12 . 64 Melee . | . . . . Projectile . | . . . . AOE 76 | . 12 . 64 Terrain Rammed . | . . . . Walls Destroyed . | . . . . Machines Disabled . | . . . . Actions | -11 -10 -9 -9 --------- Run | Scr Mat Mat Min Total 1033 | 45 228 208 552 Wait 25 | 2 4 14 5 Move 883 | 37 200 174 472 Hop . | . . . . Pick Up 9 | . 5 3 1 Fast Attach 17 | 6 1 1 9 Attach 7 | . . 4 3 Detach 2 | . . . 2 Swap 4 | . . 1 3 Drop 5 | . . 1 4 Fire 60 | . 18 10 32 Melee . | . . . . Ram 15 | . . . 15 Kick 4 | . . . 4 Crush 2 | . . . 2 Escape Stasis . | . . . . Rewire . | . . . . Trap . | . . . . Miscellaneous . | . . . . Route ------- -11/Scrapyard -10/Materials (discovered 3 exits: *Mat / Min x2) -9/Materials -9/Mines (discovered 1 exit: *Mat) History --------- Turn | Location | Event 3 | -11/Scrapyard | Discovered new exit (range 15) 57 | -11/Scrapyard | Entered Materials 208 | -10/Materials | Identified exit to Mines 312 | -10/Materials | Build established: Mutant 414 | -10/Materials | Discovered new exit (range 13) 437 | -10/Materials | Identified exit to Materials 438 | -10/Materials | Entered another Materials area 438 | -9/Materials | Evolved 2 slots: Utility x2 676 | -9/Materials | Discovered new exit (range 7) 684 | -9/Materials | Identified exit to Mines 768 | -9/Materials | Entered Mines 850 | -9/Mines | Identified exit to Materials 1039 | -9/Mines | Assembled infested the area 1094 | -9/Mines | Core integrity fell below 50% 1129 | -9/Mines | Lost 5 parts (1p2n2u) 1192 | -9/Mines | Received a Rocket Launcher from a helpful Derelict 1449 | -9/Mines | Core integrity fell below 20% 1470 | -9/Mines | Destroyed by G-34 Mercenary with Small Laser Last Messages --------------- U-05 Engineer lays Concrete. U-05 Engineer builds a Wall. Slammed into G-34 Mercenary. Rnf. Ion Engine permanently disabled. Destabilizing: Short circuit. Slammed into G-34 Mercenary. U-05 Engineer lays Concrete. Slammed into G-34 Mercenary. Signal Interpreter permanently disabled. Destabilizing: Short circuit. U-05 Engineer builds a Wall. Slammed into G-34 Mercenary. Acquired 5 matter. Kicked G-34 Mercenary out of the way. Slammed into G-34 Mercenary. R-06 Scavenger collects Aluminum Leg. U-05 Engineer builds a Wall. Slammed into G-34 Mercenary. Destabilizing: Core damaged (-12). Kicked G-34 Mercenary out of the way. Map ----- +----------------------------------------------------+ | ##???# #???## #?????## #???????? | | ##### #????## ##??????#### ##???????? | | #????## ##??????????## ##????????? | | #### #???## #???????????## ###?????????? | | #### ##?## ##??????????# ##???????????? | | % ### #??????????## ##????????????? | | % #???????????####?????????????? | | ### #????????????????????????????? | | % #?## #????????????????????????????? | | #??##### ##????????????#######????????? | | #??????## ##???????????# #????????? | | ## !##???????# ##??????????# ### #????????? | | ### #????????# ##?????????# #?# #????????? | | ### #????????## ##????????# #?# #####????? | | # ###????????#### ##???????# ### ## ##???? | | # # #???????????## ##????### ##??? | | # ##???????????## ##???# # %% ###? | | ##??????????## ##??# % #? | | ##????????## % #### # | | #???????## ## *=## # ### # | | #??????## ####%=## # ### ## | | ##????### ##??# ## ### #??###? | | #????## ##???# ## #?# # # ##????? | | ##???# ######% ## #?## #????? | | #???# # ## ## #??# ##????? | | #???# # %@ %## #??# #?????? | | ##???## # g % ## #??## #?????? | | ##?????## ## ### ### ##??## # ###?????? | | ##???????#### # # #???######???????? | | ####???????????# # # # #####????????????????? | | ##??????????????# # # #?????????????????? | | #???????????????## ! | ####?????????????????? | | ##???????????????## ==######????????????????????? | | #????????????????# %!# ##????????????????????? | | ##??????????###???# #= ##?????????????????????? | | #???????????# # # = #??????????????????????? | | ????????# # # ##??????????????????????? | | ????????# #??????????????????????? | | ????? [ #??????????????????????? | | ????? ## %= %* ##??????????????????????? | | ??????? % #???????????????????????? | | ?????? #### ## #???????????????????????? | | ?????? ?? # # #???????????????????????? | | ?????????######## ##???????????????????????? | | ?????????????##### <##????????????????????????? | | ????????????????#### #?????????????????????????? | | ??????????????????? #?????????????????????????? | | ??????????????????# #?????????????????????????? | | ??????????????????# ##?????????????????????????? | | ??????????????????# #???????????????????????????? | +----------------------------------------------------+ Best States ------------- Heat Dissipation 28 Energy Generation 12 Energy Capacity 265 Matter Stores 400 Matter Capacity 400 Sight Range 18 Robot Scan Range 10 Terrain Scan Density 10 Evasion (%) 50 Recoil Reduction 2 Item Schematics ----------------- Imp. Aluminum Leg | -9/Materials | Scanalyzed Imp. Heat Sink | -9/Materials | Scanalyzed Robot Schematics ------------------ None Fabricated ------------ Nothing Alien Tech Used ----------------- None Achievements -------------- None Challenges ------------ None Game ------ Seed GravityLegRegulator Manual? 0 Play Time 00:12:33 Cumulative 6.9 hours Start 2020.09.15 @ 17:59:03 End 2020.09.15 @ 18:11:25 Sessions 1 Manual Loads 0 Difficulty Rogue Special Mode None Game No. 8 Rogue 8 Adventurer 0 Explorer 0 Win Type - Total 0 Types 0/0/0/0/0/0/0/0/0 Lore% 19 Gallery% 17 Achievement% 28 Wizard Run 0 Options --------- ASCII 1 Keyboard 1 Movement Numpad Keybinds 0 Fullscreen 1 Font 18/SmallcapsGlow Map View 76x50 Tactical HUD 0 Map Filters NONE Filters NONE Steam 1 RUN: 72074eb5-77f8-42ef-9052-eed6aa27f125